bitfinex-derivatives/quotes_BTCF0:USTF0_20260104
["timestamp","ask_amount","ask_price","bid_price","bid_amount"]
[1767553737511,0.010996,90980.0,90965.0,0.05319833]
[1767553738019,0.00010349,90990.0,90962.0,0.09344]
[1767553738020,0.010996,90976.0,90962.0,0.09344]
[1767553738406,0.104435,90987.0,90964.0,0.14419125]
[1767553738619,0.104435,90987.0,90964.0,0.12099292]
[1767553739011,0.010996,90983.0,90964.0,0.12099292]
[1767553739521,0.010996,90983.0,90964.0,0.14419125]
[1767553739713,0.010998,90963.0,90946.0,0.09099292]
[1767553739914,0.010999,90956.0,90940.0,0.09344]
[1767553740110,0.010999,90956.0,90939.0,0.09344]
[1767553740310,0.010999,90952.0,90937.0,0.09099292]
[1767553740512,0.116586,90990.0,90955.0,0.10867436]
[1767553740713,0.010996,90979.0,90957.0,0.0180234]
[1767553741012,0.09348,90995.0,90974.0,0.10867436]
[1767553741216,0.010993,91001.0,90978.0,0.09065096]
[1767553741416,0.010994,90998.0,90978.0,0.12065096]
[1767553742216,0.010994,90994.0,90978.0,0.12065096]
[1767553742923,0.010994,90998.0,90978.0,0.12065096]
[1767553743320,0.010993,91003.0,90978.0,0.12065096]
[1767553743720,0.010993,91003.0,90978.0,0.09065096]
[1767553744024,0.010993,91003.0,90978.0,0.12065096]
[1767553744223,0.010993,91003.0,90979.0,0.09065096]
[1767553744525,0.19347724,91006.0,90977.0,0.0290194]
[1767553744526,0.19347724,91006.0,90980.0,0.09065096]
[1767553745325,0.010994,90997.0,90980.0,0.09065096]
[1767553746018,0.09348,91006.0,90985.0,0.10867436]
[1767553746217,0.09348,91016.0,90995.0,0.09065096]
[1767553746416,0.01658876,91007.0,90978.0,0.09065096]
[1767553746620,0.09999724,91004.0,90979.0,0.09348]
[1767553746830,0.09999724,91004.0,90980.0,0.09348]
[1767553747714,0.010994,90995.0,90980.0,0.09348]
[1767553747913,0.010993,91002.0,90980.0,0.18413096]
[1767553748113,0.010994,90999.0,90981.0,0.09065096]
[1767553748324,0.010994,90999.0,90980.0,0.09348]
[1767553748521,0.09348,91006.0,90984.0,0.0180234]
[1767553748522,0.010993,91001.0,90984.0,0.0180234]
[1767553748723,0.010993,91003.0,90985.0,0.10867436]
[1767553749123,0.010993,91003.0,90985.0,0.09065096]
[1767553749428,0.09348,91006.0,90984.0,0.0180234]
[1767553749618,0.09348,91006.0,90983.0,0.09065096]
[1767553749818,0.010994,90997.0,90983.0,0.09065096]
[1767553750522,0.010994,90994.0,90981.0,0.09348]
[1767553750726,0.010994,90998.0,90981.0,0.09065096]
[1767553751622,0.09348,91006.0,90980.0,0.1115034]
[1767553751623,0.104473,91006.0,90984.0,0.10867436]
[1767553751822,0.010992,91010.0,90996.0,0.09065096]
[1767553752027,0.010992,91014.0,90996.0,0.09065096]
[1767553752222,0.09348,91015.0,90996.0,0.09065096]
[1767553752223,0.010992,91012.0,90996.0,0.09065096]
[1767553752935,0.010992,91009.0,90990.0,0.09348]
[1767553753228,0.01658876,91011.0,90982.0,0.0180234]
[1767553753427,0.010993,91000.0,90983.0,0.09348]
[1767553753625,0.010993,91004.0,90983.0,0.09348]
[1767553753826,0.010993,91008.0,90989.0,0.09065096]
[1767553754032,0.09999724,91016.0,90989.0,0.09065096]
[1767553754334,0.010993,91003.0,90989.0,0.09065096]
[1767553754536,0.010993,91003.0,90983.0,0.09348]
[1767553754736,0.010993,91003.0,90983.0,0.18413096]
[1767553755437,0.010993,91003.0,90984.0,0.09065096]
[1767553755736,0.010993,91003.0,90985.0,0.10867436]
[1767553755944,0.010993,91007.0,90986.0,0.11966936]
[1767553756130,0.010993,91005.0,90987.0,0.09065096]
[1767553756435,0.02650857,91004.0,90987.0,0.09065096]
[1767553756636,0.010993,91005.0,90987.0,0.09065096]
[1767553756836,0.02652262,91004.0,90987.0,0.09065096]
[1767553757132,0.010993,91008.0,90988.0,0.10867436]
[1767553757435,0.02653969,91007.0,90988.0,0.10867436]
[1767553757627,0.010993,91003.0,90988.0,0.10867436]
[1767553757826,0.010993,91003.0,90988.0,0.09065096]
[1767553758031,0.010993,91006.0,90988.0,0.10867436]
[1767553758230,0.010993,91004.0,90988.0,0.10867436]
[1767553758435,0.02655523,91003.0,90988.0,0.10867436]
[1767553759238,0.02655523,91003.0,90990.0,0.10867436]
[1767553759536,0.02655523,91003.0,90989.0,0.02198]
[1767553759537,0.02655523,91003.0,90992.0,0.10867436]
[1767553759942,0.02655523,91003.0,90993.0,0.09065096]
[1767553760129,0.02655523,91002.0,90993.0,0.09065096]
[1767553760334,0.01658876,91017.0,90993.0,0.09065096]
[1767553760335,0.02655523,91001.0,90993.0,0.09065096]
[1767553760537,0.010993,91003.0,90989.0,0.02198]
[1767553760730,0.0265839,91002.0,90989.0,0.02198]
[1767553760930,0.0265839,91001.0,90989.0,0.01978192]
[1767553761132,0.010993,91002.0,90989.0,0.01978192]
[1767553761332,0.02658888,91001.0,90985.0,0.09065096]
[1767553761536,0.010993,91002.0,90985.0,0.09065096]
[1767553761736,0.02658885,91001.0,90986.0,0.09348]
[1767553761937,0.010994,90998.0,90986.0,0.09348]
[1767553762433,0.010993,91001.0,90986.0,0.18413096]
[1767553762736,0.02659424,91000.0,90986.0,0.10867436]
[1767553763041,0.010993,91001.0,90986.0,0.10867436]
[1767553763230,0.09999724,91010.0,90986.0,0.10867436]
[1767553763231,0.02659234,91000.0,90986.0,0.10867436]
[1767553763427,0.010994,90997.0,90984.0,0.09348]
[1767553763626,0.010993,91000.0,90984.0,0.09348]
[1767553764245,0.02662737,90999.0,90984.0,0.09348]
[1767553764430,0.02662737,90998.0,90984.0,0.104475]
[1767553764631,0.010993,91000.0,90984.0,0.19512596]
[1767553764837,0.02662876,90999.0,90984.0,0.19512596]
[1767553765040,0.02662876,90998.0,90984.0,0.19512596]
[1767553765232,0.02662876,90997.0,90984.0,0.19512596]
[1767553765438,0.02662876,90996.0,90984.0,0.19512596]
[1767553765640,0.02662876,90995.0,90984.0,0.19512596]
[1767553765937,0.010994,90999.0,90984.0,0.09065096]
[1767553766143,0.010993,91002.0,90985.0,0.09348]
[1767553766844,0.010995,90992.0,90977.0,0.09065096]
[1767553767036,0.09999724,90995.0,90981.0,0.09348]
[1767553767234,0.09999724,90995.0,90975.0,0.104476]
[1767553767431,0.010994,90993.0,90975.0,0.09348]
[1767553767843,0.09999724,91002.0,90975.0,0.09348]
[1767553768040,0.010994,90998.0,90978.0,0.10867436]
[1767553768233,0.010993,91001.0,90983.0,0.10867436]
[1767553768440,0.09999724,91009.0,90988.0,0.010995]
[1767553768640,0.09348,91010.0,90993.0,0.10867436]
[1767553769234,0.09348,91010.0,90993.0,0.09065096]
[1767553769442,0.010993,91003.0,90993.0,0.09065096]
[1767553770142,0.010993,91003.0,90987.0,0.09065096]
[1767553770342,0.010993,91001.0,90987.0,0.09065096]
[1767553770846,0.010994,90999.0,90987.0,0.09065096]
[1767553771640,0.010993,91002.0,90987.0,0.09065096]
[1767553771843,0.010993,91005.0,90989.0,0.09065404]
[1767553772344,0.010993,91003.0,90985.0,0.010995]
[1767553772740,0.010993,91003.0,90985.0,0.11755672]
[1767553773336,0.010993,91003.0,90988.0,0.10656172]
[1767553773942,0.09348,91010.0,90988.0,0.10656172]
[1767553775839,0.010994,90995.0,90979.0,0.09954997]
[1767553776039,0.010994,90995.0,90981.0,0.11575252]
[1767553776346,0.010996,90983.0,90968.0,0.09954997]
[1767553776543,0.11408736,90987.0,90962.0,0.010998]
[1767553776746,0.010997,90974.0,90961.0,0.09954997]
[1767553777038,0.09348,90984.0,90961.0,0.09954997]
[1767553777232,0.09348,90984.0,90954.0,0.09348]
[1767553777233,0.010997,90968.0,90955.0,0.09954997]
[1767553777435,0.010998,90966.0,90955.0,0.09954997]
[1767553777634,0.010998,90964.0,90955.0,0.09954997]
[1767553777841,0.010997,90967.0,90955.0,0.09954997]
[1767553778042,0.010997,90970.0,90955.0,0.11575252]
[1767553779037,0.010997,90970.0,90959.0,0.09954997]
[1767553779448,0.09348,90984.0,90959.0,0.09954997]
[1767553779652,0.010997,90972.0,90959.0,0.09954997]
[1767553780550,0.01697327,90977.0,90952.0,0.11575252]
[1767553780750,0.010997,90971.0,90954.0,0.09954997]
[1767553780941,0.010997,90971.0,90954.0,0.11575252]
[1767553781346,0.010997,90971.0,90956.0,0.09954997]
[1767553782047,0.010997,90971.0,90956.0,0.11575252]
[1767553782352,0.09348,90984.0,90956.0,0.11575252]
[1767553782353,0.09348,90984.0,90972.0,0.09954997]
[1767553782537,0.09062985,90984.0,90972.0,0.09954997]
[1767553782741,0.010995,90990.0,90980.0,0.09954997]
[1767553782937,0.09348,90991.0,90980.0,0.11575252]
[1767553783148,0.010994,90994.0,90982.0,0.09954997]
[1767553783348,0.010994,90994.0,90982.0,0.11575252]
[1767553784752,0.010992,91012.0,90986.0,0.11575252]
[1767553784960,0.010994,90998.0,90986.0,0.11575252]
[1767553785455,0.09348,91002.0,90989.0,0.11575252]
[1767553785852,0.09348,91002.0,90989.0,0.09954997]
[1767553786046,0.11408736,91013.0,90990.0,0.11575252]
[1767553786047,0.010993,91006.0,90990.0,0.11575252]
[1767553786248,0.010993,91004.0,90992.0,0.11575252]
[1767553786745,0.104473,91007.0,90993.0,0.11575252]
[1767553786949,0.02570739,91006.0,90993.0,0.11575252]
[1767553787150,0.03670039,91005.0,90993.0,0.09954997]
[1767553787351,0.010993,91005.0,90993.0,0.09954997]
[1767553789573,0.010993,91005.0,90988.0,0.09954997]
[1767553789773,0.010993,91005.0,90988.0,0.11575252]
[1767553790380,0.09348,91007.0,90989.0,0.11575252]
[1767553790670,0.02570964,91006.0,90992.0,0.11575252]
[1767553790866,0.09348,91007.0,90992.0,0.11575252]
[1767553791069,0.010993,91004.0,90992.0,0.11575252]
[1767553792776,0.104473,91007.0,90995.0,0.01620255]
[1767553793681,0.07284326,91007.0,90998.0,0.11575252]
[1767553793862,0.07284326,91007.0,90998.0,0.09954997]
[1767553794068,0.07284326,91007.0,90993.0,0.01620255]
[1767553795972,0.09931145,91019.0,90998.0,0.11575252]
[1767553795973,0.104472,91014.0,90998.0,0.11575252]
[1767553796164,0.010992,91012.0,90998.0,0.11575252]
[1767553796371,0.010992,91012.0,90998.0,0.09954997]
[1767553797474,0.010992,91012.0,90993.0,0.01620255]
[1767553797777,0.010992,91010.0,90993.0,0.04620255]
[1767553797973,0.09348,91014.0,90984.0,0.09954997]
[1767553797974,0.11408736,91006.0,90984.0,0.09954997]
[1767553798174,0.11408736,91006.0,90984.0,0.19302997]
[1767553798374,0.11408736,91006.0,90985.0,0.09348]
[1767553798375,0.010994,90997.0,90985.0,0.09348]
[1767553798565,0.010994,91000.0,90985.0,0.09348]
[1767553798766,0.11408736,91006.0,90984.0,0.09954997]
[1767553798767,0.09711409,91006.0,90984.0,0.09954997]
[1767553798971,0.010995,90984.0,90970.0,0.19302997]
[1767553799579,0.010995,90987.0,90971.0,0.09954997]
[1767553800077,0.010995,90987.0,90971.0,0.11575252]
[1767553800278,0.010995,90985.0,90971.0,0.11575252]
[1767553800664,0.010995,90985.0,90931.0,0.09866421]
[1767553800665,0.02072574,90986.0,90949.0,0.02009179]
[1767553800868,0.010997,90971.0,90954.0,0.02009179]
[1767553801076,0.11420574,90985.0,90954.0,0.02]
[1767553801077,0.09273874,90974.0,90954.0,0.02]
[1767553801268,0.010997,90968.0,90949.0,0.02009179]
[1767553801673,0.09273874,90974.0,90949.0,0.11357179]
[1767553801674,0.010998,90964.0,90949.0,0.11357179]
[1767553802178,0.010997,90970.0,90950.0,0.010999]
[1767553802379,0.010997,90968.0,90950.0,0.02009179]
[1767553803175,0.010997,90974.0,90957.0,0.09699447]
[1767553803376,0.010995,90986.0,90969.0,0.02009179]
[1767553803683,0.09348,90999.0,90981.0,0.11708626]
[1767553803866,0.09348,91009.0,90989.0,0.02009179]
[1767553804070,0.09348,91013.0,90999.0,0.010993]
[1767553804270,0.00219736,91019.0,90999.0,0.13798747]
[1767553804473,0.00219736,91019.0,91001.0,0.010993]
[1767553804772,0.00219736,91019.0,91007.0,0.09699447]
[1767553804972,0.01099,91027.0,91007.0,0.11708626]
[1767553805174,0.01099,91027.0,91007.0,0.09699447]
[1767553805377,0.010991,91021.0,91000.0,0.02009179]
[1767553805573,0.09273874,91025.0,90999.0,0.10798847]
[1767553806169,0.10372974,91018.0,90997.0,0.09348]
[1767553806369,0.09273874,91018.0,90997.0,0.09348]
[1767553806583,0.010992,91016.0,90997.0,0.09348]
[1767553806975,0.09273874,91018.0,90997.0,0.104474]
[1767553808279,0.010991,91022.0,91000.0,0.010993]
[1767553808478,0.02072574,91023.0,90999.0,0.010993]
[1767553808674,0.09273874,91022.0,90999.0,0.010993]
[1767553808875,0.09273874,91022.0,91002.0,0.010993]
[1767553809074,0.010991,91021.0,91002.0,0.010993]
[1767553809378,0.10367974,91021.0,91002.0,0.010993]
[1767553809975,0.010991,91019.0,90999.0,0.010994]
[1767553810577,0.09273874,91021.0,90999.0,0.010994]
[1767553810884,0.11346448,91015.0,90998.0,0.010994]
[1767553811078,0.11346448,91015.0,90990.0,0.09699447]
[1767553811284,0.09273874,91007.0,90988.0,0.09348]
[1767553811480,0.09273874,91007.0,90983.0,0.09699447]
[1767553811687,0.11346448,91000.0,90975.0,0.09699447]
[1767553811889,0.010995,90987.0,90975.0,0.09699447]
[1767553812085,0.010995,90987.0,90973.0,0.09348]
[1767553812280,0.010995,90987.0,90969.0,0.010997]
[1767553812488,0.11346448,90995.0,90969.0,0.12348]
[1767553813185,0.09273874,90993.0,90969.0,0.12348]
[1767553813984,0.11346448,91010.0,90981.0,0.12808226]
[1767553814182,0.11346448,91010.0,90983.0,0.12808126]
[1767553814183,0.11917271,91009.0,90983.0,0.12808126]
[1767553814387,0.010993,91004.0,90985.0,0.10798947]
[1767553814591,0.010993,91004.0,90985.0,0.12808126]
[1767553814782,0.010993,91004.0,90986.0,0.09699447]
[1767553815089,0.09273874,91008.0,90982.0,0.010996]
[1767553815287,0.02569426,91007.0,90982.0,0.010996]
[1767553815489,0.02569426,91006.0,90982.0,0.010996]
[1767553815677,0.02569426,91005.0,90982.0,0.010996]
[1767553815874,0.010993,91003.0,90984.0,0.010995]
[1767553816189,0.010993,91001.0,90981.0,0.010996]
[1767553816492,0.010993,91004.0,90985.0,0.11708626]
[1767553816680,0.010993,91004.0,90986.0,0.11708626]
[1767553817079,0.010993,91004.0,90987.0,0.11708626]
[1767553817280,0.010993,91008.0,90993.0,0.11708626]
[1767553817574,0.09348,91009.0,90993.0,0.11708626]
[1767553818276,0.010993,91006.0,90993.0,0.11708626]
[1767553818479,0.010993,91006.0,90988.0,0.010995]
[1767553818992,0.09348,91009.0,90991.0,0.010994]
[1767553819291,0.010993,91008.0,90992.0,0.010994]
[1767553819592,0.010993,91000.0,90983.0,0.010995]
[1767553819776,0.11346448,91003.0,90978.0,0.09348]
[1767553819984,0.09273874,91001.0,90978.0,0.09348]
[1767553821291,0.09273874,91001.0,90978.0,0.104476]
[1767553821494,0.11346448,90993.0,90969.0,0.09699447]
[1767553821689,0.010995,90989.0,90970.0,0.010997]
[1767553821878,0.010995,90989.0,90969.0,0.09699447]
[1767553822687,0.010994,90992.0,90972.0,0.02009179]
[1767553822887,0.010994,90992.0,90973.0,0.11708626]
[1767553823092,0.010995,90990.0,90974.0,0.11708626]
[1767553823285,0.010995,90990.0,90975.0,0.010996]
[1767553824101,0.09273874,90992.0,90971.0,0.010997]
[1767553824397,0.010995,90987.0,90973.0,0.010997]
[1767553827099,0.010995,90990.0,90968.0,0.11708626]
[1767553827291,0.09348,90993.0,90975.0,0.11708626]
[1767553827599,0.010995,90990.0,90975.0,0.12808226]
[1767553828798,0.010995,90990.0,90977.0,0.010996]
[1767553828995,0.09348,90993.0,90978.0,0.09699447]
[1767553829195,0.09348,90993.0,90983.0,0.010995]
[1767553829402,0.09348,90993.0,90980.0,0.11708626]
[1767553829592,0.09348,90993.0,90981.0,0.010996]
[1767553829791,0.010994,90999.0,90983.0,0.010995]
[1767553829997,0.010994,90997.0,90983.0,0.12808126]
[1767553830902,0.010994,91000.0,90985.0,0.010995]
[1767553831298,0.010992,91010.0,90996.0,0.11131979]
[1767553831499,0.010992,91013.0,90996.0,0.12231379]
[1767553832196,0.010992,91013.0,90996.0,0.11736856]
[1767553832398,0.010992,91013.0,90996.0,0.10345015]
[1767553832796,0.010992,91013.0,90996.0,0.09245615]
[1767553832997,0.09348,91014.0,90991.0,0.09348]
[1767553833303,0.010992,91010.0,90992.0,0.010994]
[1767553834807,0.010992,91013.0,90994.0,0.010994]
[1767553836707,0.010992,91011.0,90991.0,0.104474]
[1767553837300,0.010992,91011.0,90993.0,0.010994]
[1767553838709,0.19168048,91014.0,90991.0,0.09348]
[1767553839211,0.0260836,91013.0,90991.0,0.09348]
[1767553839400,0.19168048,91014.0,90991.0,0.09348]
[1767553839600,0.02608376,91013.0,90991.0,0.09348]
[1767553839805,0.19168048,91014.0,90991.0,0.09348]
[1767553840005,0.010992,91013.0,90997.0,0.010994]
[1767553840402,0.09348,91014.0,91003.0,0.010993]
[1767553841601,0.09348,91014.0,90997.0,0.10992297]
[1767553841602,0.104472,91014.0,90997.0,0.10992297]
[1767553841808,0.104472,91014.0,90997.0,0.010994]
[1767553841809,0.09348,91014.0,90997.0,0.010994]
[1767553842306,0.00219736,91019.0,91002.0,0.11324802]
[1767553842506,0.00219736,91019.0,90992.0,0.010994]
[1767553842507,0.09348,91018.0,91004.0,0.11324802]
[1767553842698,0.09348,91018.0,91003.0,0.010993]
[1767553842897,0.09348,91018.0,91005.0,0.010993]
[1767553843602,0.21023145,91018.0,91004.0,0.010993]
[1767553843802,0.11675145,91017.0,91004.0,0.010993]
[1767553844003,0.11675145,91016.0,91004.0,0.010993]
[1767553844604,0.09820048,91016.0,91002.0,0.010993]
[1767553844804,0.11675145,91016.0,90999.0,0.010994]
[1767553845113,0.12774345,91016.0,91003.0,0.010993]
[1767553846612,0.010992,91014.0,91000.0,0.010993]
[1767553847213,0.12774345,91017.0,90995.0,0.09348]
[1767553848005,0.11675145,91017.0,91004.0,0.010993]
[1767553848612,0.11675145,91016.0,91004.0,0.010993]
[1767553849216,0.09820048,91016.0,91004.0,0.010993]
[1767553850411,0.11675145,91016.0,91004.0,0.010993]
[1767553852518,0.11675145,91014.0,91004.0,0.010993]
[1767553855020,0.01855097,91018.0,91007.0,0.010992]
[1767553855419,0.01855097,91017.0,91004.0,0.010993]
[1767553855610,0.01855097,91017.0,91006.0,0.010993]
[1767553856011,0.12774345,91017.0,91003.0,0.010993]
[1767553856417,0.01855097,91016.0,91003.0,0.010993]
[1767553856615,0.11675145,91016.0,91004.0,0.010993]
[1767553856814,0.00219736,91019.0,91002.0,0.01282823]
[1767553857023,0.00219736,91019.0,90981.0,0.09892897]
[1767553857024,0.01855097,91002.0,90981.0,0.09892897]
[1767553857221,0.11675145,90997.0,90987.0,0.09344]
[1767553857414,0.01855097,91002.0,90988.0,0.010995]
[1767553857825,0.01855097,91002.0,90990.0,0.010995]
[1767553858019,0.09344,91009.0,90995.0,0.01272801]
[1767553858417,0.010992,91015.0,90996.0,0.01578548]
[1767553858617,0.11981079,91014.0,90996.0,0.01578548]
[1767553858917,0.09344,91014.0,91000.0,0.010993]
[1767553859112,0.010992,91013.0,91000.0,0.010993]
[1767553859724,0.010992,91011.0,90997.0,0.010994]
[1767553860026,0.010992,91009.0,90997.0,0.010994]
[1767553860712,0.010993,91003.0,90989.0,0.010995]
[1767553860918,0.12080351,91003.0,90983.0,0.19167864]
[1767553861120,0.09011781,90996.0,90968.0,0.09823864]
[1767553861323,0.10981051,90990.0,90980.0,0.010996]
[1767553861517,0.09011781,90990.0,90977.0,0.010996]
[1767553861722,0.0306867,90995.0,90977.0,0.010996]
[1767553862223,0.10111281,90989.0,90972.0,0.010997]
[1767553862417,0.010995,90986.0,90970.0,0.010997]
[1767553862612,0.010993,91003.0,90970.0,0.010997]
[1767553862613,0.09011781,91003.0,90981.0,0.01495944]
[1767553862813,0.10981051,91001.0,90976.0,0.01495944]
[1767553863018,0.10981051,91001.0,90977.0,0.11319808]
[1767553863225,0.09344,91007.0,90987.0,0.11399727]
[1767553863529,0.18359781,91013.0,90999.0,0.010994]
[1767553863725,0.09011781,91013.0,90990.0,0.11399727]
[1767553863926,0.09348,91015.0,91003.0,0.010993]
[1767553864418,0.09348,91015.0,91004.0,0.010993]
[1767553864614,0.09231517,91019.0,91008.0,0.010992]
[1767553864816,0.09348,91017.0,91008.0,0.010992]
[1767553865123,0.09567736,91019.0,90999.0,0.010994]
[1767553865329,0.09567736,91019.0,91008.0,0.010992]
[1767553865534,0.09567736,91019.0,90996.0,0.010994]
[1767553865721,0.18579517,91019.0,91009.0,0.010992]
[1767553866824,0.10981051,91013.0,91002.0,0.010993]
[1767553868134,0.20548787,91019.0,91006.0,0.010993]
[1767553868333,0.10981051,91015.0,91006.0,0.010993]
[1767553869235,0.10981051,91015.0,90995.0,0.09348]
[1767553869534,0.10981051,91015.0,91005.0,0.010993]
[1767553872430,0.09011781,91015.0,91005.0,0.010993]
[1767553873839,0.0196927,91017.0,91007.0,0.010993]
[1767553874137,0.02657121,91016.0,90996.0,0.010994]
[1767553874438,0.10981051,91017.0,91005.0,0.010993]
[1767553874632,0.0265713,91016.0,91005.0,0.010993]
[1767553874838,0.10981051,91017.0,91007.0,0.010993]
[1767553875025,0.02657132,91016.0,91007.0,0.010993]
[1767553875231,0.10981051,91017.0,91007.0,0.010993]
[1767553875435,0.02657154,91016.0,91007.0,0.010993]
[1767553875634,0.10981051,91017.0,91007.0,0.010993]
[1767553875837,0.02657142,91016.0,91007.0,0.010993]
[1767553876038,0.10981051,91017.0,91007.0,0.010993]
[1767553876229,0.02657143,91016.0,91007.0,0.010993]
[1767553876431,0.11200787,91019.0,91009.0,0.010992]
[1767553876632,0.11668947,91018.0,91012.0,0.010992]
[1767553876837,0.02657166,91017.0,91009.0,0.010992]
[1767553877030,0.02657166,91016.0,91009.0,0.010992]
[1767553877230,0.02657166,91015.0,90996.0,0.09823864]
[1767553877425,0.02657166,91014.0,91000.0,0.10635631]
[1767553877626,0.00219736,91019.0,91007.0,0.010992]
[1767553877831,0.02657162,91018.0,91007.0,0.010992]
[1767553878037,0.02657162,91017.0,91007.0,0.010992]
[1767553878237,0.02657162,91016.0,91007.0,0.010992]
[1767553878432,0.11200787,91019.0,91007.0,0.010992]
[1767553878433,0.02657162,91015.0,91007.0,0.010992]
[1767553878633,0.02657162,91014.0,91009.0,0.010992]
[1767553878839,0.09231517,91019.0,91009.0,0.010992]
[1767553879041,0.02657169,91018.0,91009.0,0.010992]
[1767553879341,0.02657169,91017.0,91009.0,0.010992]
[1767553879640,0.02657169,91016.0,91009.0,0.010992]
[1767553879839,0.02657169,91015.0,91009.0,0.010992]
[1767553880028,0.00219736,91019.0,91009.0,0.010992]
[1767553880229,0.0265713,91018.0,91009.0,0.010992]
[1767553880431,0.0265713,91017.0,91009.0,0.010992]
[1767553880632,0.0265713,91016.0,91009.0,0.010992]
[1767553880829,0.0265713,91015.0,91009.0,0.010992]
[1767553881044,0.00219736,91019.0,91009.0,0.010992]
[1767553881246,0.0265712,91018.0,91009.0,0.010992]
[1767553881434,0.0265712,91017.0,91009.0,0.010992]
[1767553881639,0.0265712,91016.0,91009.0,0.010992]
[1767553881835,0.0265712,91015.0,91009.0,0.010992]
[1767553882036,0.00219736,91019.0,91009.0,0.010992]
[1767553882335,0.02657117,91018.0,91009.0,0.010992]
[1767553882535,0.02657117,91017.0,91009.0,0.010992]
[1767553882741,1.7e-07,91016.0,91009.0,0.04280623]
[1767553883048,0.09344,91023.0,91009.0,0.04280623]
[1767553883251,0.09344,91023.0,91009.0,0.03]
[1767553883937,0.09344,91023.0,91012.0,0.010992]
[1767553884256,0.0196927,91024.0,91012.0,0.040992]
[1767553884835,0.0196927,91024.0,91012.0,0.03]
[1767553885042,0.0196927,91024.0,91014.0,0.010992]
[1767553885242,0.0196927,91024.0,91002.0,0.10923164]
[1767553885547,0.0196927,91024.0,91012.0,0.010992]
[1767553886351,0.10981051,91024.0,91012.0,0.010992]
[1767553886844,0.10981051,91024.0,91002.0,0.11131064]
[1767553887033,0.20325051,91024.0,91002.0,0.14131064]
[1767553887238,0.20325051,91024.0,91013.0,0.010992]
[1767553887741,0.0196927,91022.0,91013.0,0.010992]
[1767553887942,0.09011781,91023.0,91013.0,0.010992]
[1767553888446,0.09011781,91023.0,91004.0,0.01242017]
[1767553888644,0.09011781,91023.0,91004.0,0.04242017]
[1767553888842,0.0196927,91022.0,91004.0,0.03]
[1767553890145,0.0196927,91022.0,91012.0,0.010992]
[1767553890444,0.19270656,91036.0,91014.0,0.0168556]
[1767553890744,0.09344,91035.0,91024.0,0.01099]
[1767553890945,0.09344,91040.0,91031.0,0.01099]
[1767553891139,0.09344,91040.0,91031.0,0.04099]
[1767553891339,0.09926656,91045.0,91031.0,0.03]
[1767553891540,0.03143289,91046.0,91032.0,0.0168556]
[1767553891737,0.09926656,91057.0,91046.0,0.010988]
[1767553892049,0.010986,91060.0,91046.0,0.03]
[1767553892747,0.09344,91065.0,91051.0,0.010987]
[1767553893051,0.09344,91065.0,91051.0,0.040987]
[1767553893641,0.09344,91065.0,91051.0,0.03]
[1767553893935,0.010986,91064.0,91051.0,0.03]
[1767553894139,0.010986,91062.0,91044.0,0.0278436]
[1767553894337,0.09926656,91051.0,91040.0,0.09344]
[1767553894650,0.11757429,91051.0,91035.0,0.104429]
[1767553894846,0.11757429,91051.0,91035.0,0.03]
[1767553895045,0.11166971,91057.0,91035.0,0.03]
[1767553895550,0.11155114,91057.0,91034.0,0.09344]
[1767553895754,0.11155114,91057.0,91035.0,0.01719408]
[1767553896054,0.09344,91067.0,91061.0,0.010986]
[1767553896348,0.09344,91071.0,91064.0,0.010986]
[1767553896646,0.09344,91073.0,91054.0,0.09133442]
[1767553896850,0.09344,91073.0,91061.0,0.010986]
[1767553897040,0.09344,91073.0,91054.0,0.09133442]
[1767553897654,0.09344,91073.0,91063.0,0.010986]
[1767553898046,0.09344,91073.0,91057.0,0.010986]
[1767553898245,0.01879445,91072.0,91056.0,0.010987]
[1767553899056,0.01879445,91070.0,91056.0,0.010987]
[1767553899554,0.09344,91073.0,91056.0,0.010987]
[1767553900941,0.09344,91073.0,91052.0,0.1085285]
[1767553900942,0.09344,91073.0,91055.0,0.010987]
[1767553901851,0.09344,91073.0,91057.0,0.010986]
[1767553903948,0.11223445,91073.0,91057.0,0.010986]
[1767553904859,0.11166971,91069.0,91057.0,0.010986]
[1767553905154,0.01879445,91068.0,91057.0,0.010986]
[1767553905356,0.09287526,91069.0,91057.0,0.010986]
[1767553905654,0.01879445,91080.0,91059.0,0.1085285]
[1767553905843,0.09287526,91082.0,91066.0,0.010985]
[1767553906043,0.09287526,91082.0,91065.0,0.010986]
[1767553906648,0.09287526,91082.0,91067.0,0.010985]
[1767553906649,0.01879445,91081.0,91067.0,0.010985]
[1767553906851,0.01879445,91081.0,91066.0,0.010985]
[1767553907244,0.010983,91084.0,91063.0,0.1085285]
[1767553907461,0.0934,91080.0,91063.0,0.1085285]
[1767553907761,0.0934,91082.0,91063.0,0.1085285]
[1767553907945,0.11166971,91077.0,91062.0,0.010986]
[1767553908155,0.01879445,91076.0,91062.0,0.010986]
[1767553908352,0.02977845,91081.0,91062.0,0.010986]
[1767553908661,0.03197436,91079.0,91062.0,0.010986]
[1767553908957,0.01879445,91078.0,91062.0,0.010986]
[1767553909854,0.01879445,91078.0,91057.0,0.2019285]
[1767553910051,0.01879445,91078.0,91063.0,0.010986]
[1767553911164,0.010984,91077.0,91057.0,0.2019285]
[1767553911366,0.02977845,91077.0,91057.0,0.2019285]
[1767553911658,0.09287526,91078.0,91063.0,0.010986]
[1767553913661,0.10385926,91078.0,91063.0,0.010986]
[1767553914360,0.010984,91076.0,91063.0,0.010986]
[1767553915163,0.11166971,91078.0,91057.0,0.2019285]
[1767553916162,0.12265371,91078.0,91063.0,0.010986]
[1767553916357,0.01879445,91075.0,91060.0,0.010986]
[1767553916553,0.02977945,91073.0,91057.0,0.0934]
[1767553916758,0.01879445,91077.0,91057.0,0.14059408]
[1767553916962,0.010984,91077.0,91064.0,0.010986]
[1767553917463,0.01879445,91076.0,91064.0,0.010986]
[1767553919270,0.01879445,91076.0,91059.0,0.09133442]
[1767553919467,0.01879445,91076.0,91064.0,0.010986]
[1767553919861,0.01879445,91076.0,91065.0,0.010985]
[1767553920060,0.01879445,91076.0,91070.0,0.010985]
[1767553920369,0.00219591,91079.0,91073.0,0.010985]
[1767553920570,0.00219591,91079.0,91060.0,0.22787806]
[1767553920862,0.00219591,91079.0,91072.0,0.010985]
[1767553921062,9.1e-07,91079.0,91072.0,0.03]